[Event "Titled Tuesday Blitz July 11 Late 2023"]
[White "Fajdetic, Hrvoje"]
[Black "Deng, Henry"]
[WhiteFideId "14501945"]
[BlackFideId "30965454"]
[WhiteElo "2356"]
[BlackElo "2517"]
[Result "0-1"]
[Round "10"]
[TimeControl "180+2"]
[Date "2023.07.11"]
[WhiteClock "0:00:00"]
[BlackClock "0:00:13"]
[Board "68"]

1. f4 {[%clk 0:02:57]}  d5 {[%clk 0:02:57]} 2. Nf3 {[%clk 0:02:57]}  Nf6 {[%clk 0:02:55]} 3. e3 {[%clk 0:02:56]}  Bf5 {[%clk 0:02:54]} 4. b3 {[%clk 0:02:54]}  h6 {[%clk 0:02:54]} 5. Bb2 {[%clk 0:02:54]}  e6 {[%clk 0:02:55]} 6. Bd3 {[%clk 0:02:51]}  Bxd3 {[%clk 0:02:54]} 7. cxd3 {[%clk 0:02:52]}  Be7 {[%clk 0:02:52]} 8. O-O {[%clk 0:02:44]}  O-O {[%clk 0:02:52]} 9. Nc3 {[%clk 0:02:33]}  Nbd7 {[%clk 0:02:44]} 10. Ne2 {[%clk 0:02:27]}  c5 {[%clk 0:02:41]} 11. Ng3 {[%clk 0:02:17]}  Re8 {[%clk 0:02:35]} 12. f5 {[%clk 0:02:12]}  Bf8 {[%clk 0:02:34]} 13. fxe6 {[%clk 0:02:11]}  Rxe6 {[%clk 0:02:32]} 14. Nf5 {[%clk 0:02:07]}  Qb6 {[%clk 0:02:10]} 15. Qe1 {[%clk 0:01:37]}  Qa6 {[%clk 0:01:57]} 16. Qg3 {[%clk 0:01:28]}  Kh8 {[%clk 0:01:44]} 17. Ne5 {[%clk 0:01:18]}  Nxe5 {[%clk 0:01:39]} 18. Bxe5 {[%clk 0:01:18]}  Nh5 {[%clk 0:01:11]} 19. Nxg7 {[%clk 0:00:30]}  Nxg3 {[%clk 0:00:39]} 20. Nxe6+ {[%clk 0:00:30]}  Kg8 {[%clk 0:00:39]} 21. Nc7 {[%clk 0:00:30]}  Qxd3 {[%clk 0:00:31]} 22. Bxg3 {[%clk 0:00:28]}  Rc8 {[%clk 0:00:31]} 23. Rf3 {[%clk 0:00:13]}  Rd8 {[%clk 0:00:20]} 24. Raf1 {[%clk 0:00:11]}  Rd7 {[%clk 0:00:21]} 25. Ne8 {[%clk 0:00:11]}  Bg7 {[%clk 0:00:20]} 26. Nf6+ {[%clk 0:00:08]}  Bxf6 {[%clk 0:00:20]} 27. Rxf6 {[%clk 0:00:09]}  Qxd2 {[%clk 0:00:20]} 28. Bf4 {[%clk 0:00:06]}  h5 {[%clk 0:00:18]} 29. Rf5 {[%clk 0:00:04]}  Qe2 {[%clk 0:00:17]} 30. Rg5+ {[%clk 0:00:03]}  Kf8 {[%clk 0:00:17]} 31. Re5 {[%clk 0:00:03]}  Re7 {[%clk 0:00:15]} 32. Bh6+ {[%clk 0:00:02]}  Ke8 {[%clk 0:00:15]} 33. Rxd5 {[%clk 0:00:01]}  Rd7 {[%clk 0:00:13]} 34. Re5+ {[%clk 0:00:00]}  Kd8 {[%clk 0:00:13]} 0-1


[Site "https://www.chess.com"]

[Event "Titled Tuesday Blitz July 11 Late 2023"]
[White "Martinez Reyes, Pedro Ramon"]
[Black "OllieAr"]
[WhiteFideId "3901807"]
[WhiteElo "2515"]
[BlackElo "2331"]
[Result "1-0"]
[Round "10"]
[TimeControl "180+2"]
[Date "2023.07.11"]
[WhiteClock "0:00:04"]
[BlackClock "0:00:04"]
[Board "69"]

1. d4 {[%clk 0:03:00]}  d5 {[%clk 0:02:59]} 2. c4 {[%clk 0:02:59]}  e6 {[%clk 0:03:00]} 3. Nc3 {[%clk 0:02:56]}  Nf6 {[%clk 0:03:00]} 4. cxd5 {[%clk 0:02:40]}  exd5 {[%clk 0:03:01]} 5. Bg5 {[%clk 0:02:40]}  c6 {[%clk 0:03:01]} 6. e3 {[%clk 0:02:41]}  Bd6 {[%clk 0:03:01]} 7. Bd3 {[%clk 0:02:40]}  O-O {[%clk 0:03:01]} 8. Qc2 {[%clk 0:02:37]}  h6 {[%clk 0:03:01]} 9. Bh4 {[%clk 0:02:37]}  a5 {[%clk 0:03:00]} 10. Nge2 {[%clk 0:02:35]}  Re8 {[%clk 0:02:59]} 11. Bg3 {[%clk 0:01:55]}  Na6 {[%clk 0:02:58]} 12. a3 {[%clk 0:01:55]}  Nc7 {[%clk 0:02:57]} 13. O-O {[%clk 0:01:47]}  Ne6 {[%clk 0:02:56]} 14. f3 {[%clk 0:01:46]}  Ng5 {[%clk 0:02:41]} 15. Bf2 {[%clk 0:01:45]}  b5 {[%clk 0:02:07]} 16. Rae1 {[%clk 0:01:43]}  h5 {[%clk 0:01:55]} 17. h4 {[%clk 0:01:42]}  Ne6 {[%clk 0:01:52]} 18. e4 {[%clk 0:01:42]}  dxe4 {[%clk 0:01:46]} 19. Nxe4 {[%clk 0:01:41]}  Bb7 {[%clk 0:01:24]} 20. Rd1 {[%clk 0:01:19]}  Nf4 {[%clk 0:01:17]} 21. Nxf4 {[%clk 0:01:17]}  Bxf4 {[%clk 0:01:18]} 22. Nc5 {[%clk 0:01:12]}  Bc8 {[%clk 0:01:13]} 23. Bf5 {[%clk 0:00:39]}  Nd5 {[%clk 0:01:07]} 24. Rfe1 {[%clk 0:00:36]}  Be3 {[%clk 0:00:59]} 25. Be4 {[%clk 0:00:06]}  Bxf2+ {[%clk 0:00:53]} 26. Qxf2 {[%clk 0:00:07]}  Be6 {[%clk 0:00:38]} 27. Qg3 {[%clk 0:00:06]}  Qf6 {[%clk 0:00:27]} 28. Bb1 {[%clk 0:00:05]}  Rad8 {[%clk 0:00:18]} 29. Re5 {[%clk 0:00:05]}  g6 {[%clk 0:00:16]} 30. Rde1 {[%clk 0:00:04]}  Nf4 {[%clk 0:00:09]} 31. Ne4 {[%clk 0:00:02]}  Qg7 {[%clk 0:00:08]} 32. Qxf4 {[%clk 0:00:03]}  Rxd4 {[%clk 0:00:08]} 33. Nf6+ {[%clk 0:00:03]}  Qxf6 {[%clk 0:00:04]} 34. Qxf6 {[%clk 0:00:04]} 1-0


[Site "https://www.chess.com"]

[Event "Titled Tuesday Blitz July 11 Late 2023"]
[White "Cooper, Aaron"]
[Black "Banzea, Alexandru-Bogdan"]
[WhiteFideId "2634945"]
[BlackFideId "1232622"]
[WhiteElo "2270"]
[BlackElo "2590"]
[Result "0-1"]
[Round "10"]
[TimeControl "180+2"]
[Date "2023.07.11"]
[WhiteClock "0:00:06"]
[BlackClock "0:00:05"]
[Board "71"]

1. b4 {[%clk 0:03:00]}  h5 {[%clk 0:02:56]} 2. Bb2 {[%clk 0:02:59]}  a5 {[%clk 0:02:56]} 3. b5 {[%clk 0:02:59]}  a4 {[%clk 0:02:55]} 4. Nf3 {[%clk 0:02:53]}  h4 {[%clk 0:02:54]} 5. h3 {[%clk 0:02:48]}  e6 {[%clk 0:02:38]} 6. a3 {[%clk 0:02:45]}  Nf6 {[%clk 0:02:34]} 7. c4 {[%clk 0:02:44]}  b6 {[%clk 0:02:27]} 8. Nc3 {[%clk 0:02:43]}  Bb7 {[%clk 0:02:25]} 9. Nxa4 {[%clk 0:02:37]}  d5 {[%clk 0:02:13]} 10. e3 {[%clk 0:02:30]}  Nbd7 {[%clk 0:02:00]} 11. d4 {[%clk 0:02:26]}  dxc4 {[%clk 0:01:59]} 12. Bxc4 {[%clk 0:02:24]}  Bd6 {[%clk 0:01:59]} 13. Nc3 {[%clk 0:02:20]}  Qe7 {[%clk 0:01:54]} 14. a4 {[%clk 0:02:19]}  e5 {[%clk 0:01:52]} 15. dxe5 {[%clk 0:01:54]}  Nxe5 {[%clk 0:01:53]} 16. Nxe5 {[%clk 0:01:53]}  Qxe5 {[%clk 0:01:48]} 17. Qb3 {[%clk 0:01:16]}  Qe7 {[%clk 0:01:12]} 18. Nd5 {[%clk 0:01:00]}  Bxd5 {[%clk 0:00:58]} 19. Bxd5 {[%clk 0:01:01]}  Rd8 {[%clk 0:00:57]} 20. O-O-O {[%clk 0:00:56]}  Kf8 {[%clk 0:00:53]} 21. Bc6 {[%clk 0:00:40]}  Rh5 {[%clk 0:00:52]} 22. Kb1 {[%clk 0:00:38]}  Be5 {[%clk 0:00:49]} 23. Rxd8+ {[%clk 0:00:34]}  Qxd8 {[%clk 0:00:50]} 24. Rd1 {[%clk 0:00:31]}  Qe7 {[%clk 0:00:45]} 25. Ba3 {[%clk 0:00:27]}  Bd6 {[%clk 0:00:41]} 26. Bxd6 {[%clk 0:00:26]}  cxd6 {[%clk 0:00:41]} 27. Rd4 {[%clk 0:00:20]}  Rc5 {[%clk 0:00:18]} 28. Qd3 {[%clk 0:00:19]}  d5 {[%clk 0:00:12]} 29. Bxd5 {[%clk 0:00:16]}  Rxd5 {[%clk 0:00:08]} 30. Rxd5 {[%clk 0:00:16]}  Qb4+ {[%clk 0:00:07]} 31. Kc2 {[%clk 0:00:13]}  Qxa4+ {[%clk 0:00:06]} 32. Kc3 {[%clk 0:00:07]}  Qa3+ {[%clk 0:00:03]} 33. Kd4 {[%clk 0:00:08]}  Qxd3+ {[%clk 0:00:03]} 34. Kxd3 {[%clk 0:00:08]}  Nxd5 {[%clk 0:00:04]} 35. Kd4 {[%clk 0:00:07]}  Nc7 {[%clk 0:00:05]} 36. Ke5 {[%clk 0:00:05]}  Nxb5 {[%clk 0:00:05]} 37. Kd5 {[%clk 0:00:06]}  Nc3+ {[%clk 0:00:04]} 38. Kc6 {[%clk 0:00:05]}  Nd1 {[%clk 0:00:05]} 39. Kxb6 {[%clk 0:00:04]}  Nxf2 {[%clk 0:00:05]} 40. Kc5 {[%clk 0:00:05]}  Ke7 {[%clk 0:00:04]} 41. Kd4 {[%clk 0:00:05]}  Kf6 {[%clk 0:00:04]} 42. e4 {[%clk 0:00:06]}  Ke6 {[%clk 0:00:04]} 43. Ke3 {[%clk 0:00:06]}  Nh1 {[%clk 0:00:04]} 44. Kf3 {[%clk 0:00:07]}  Ng3 {[%clk 0:00:04]} 45. Kg4 {[%clk 0:00:07]}  Nxe4 {[%clk 0:00:04]} 46. Kxh4 {[%clk 0:00:08]}  Kf5 {[%clk 0:00:04]} 47. g4+ {[%clk 0:00:07]}  Kf4 {[%clk 0:00:05]} 48. Kh5 {[%clk 0:00:07]}  Nf6+ {[%clk 0:00:04]} 49. Kh4 {[%clk 0:00:06]}  g5# {[%clk 0:00:05]} 0-1


[Site "https://www.chess.com"]

[Event "Titled Tuesday Blitz July 11 Late 2023"]
[White "dodoucb"]
[Black "Aggelis, Nikolaos"]
[BlackFideId "4213220"]
[WhiteElo "2385"]
[BlackElo "2524"]
[Result "0-1"]
[Round "10"]
[TimeControl "180+2"]
[Date "2023.07.11"]
[WhiteClock "0:00:06"]
[BlackClock "0:00:57"]
[Board "75"]

1. e4 {[%clk 0:02:59]}  c6 {[%clk 0:02:59]} 2. d4 {[%clk 0:02:58]}  d5 {[%clk 0:03:00]} 3. e5 {[%clk 0:02:55]}  c5 {[%clk 0:02:59]} 4. Nf3 {[%clk 0:02:40]}  Nc6 {[%clk 0:02:57]} 5. c3 {[%clk 0:02:40]}  Bg4 {[%clk 0:02:56]} 6. dxc5 {[%clk 0:02:33]}  e6 {[%clk 0:02:53]} 7. Be2 {[%clk 0:02:32]}  Bxc5 {[%clk 0:02:50]} 8. Bf4 {[%clk 0:02:29]}  Nge7 {[%clk 0:02:49]} 9. Qb3 {[%clk 0:02:17]}  O-O {[%clk 0:02:47]} 10. Nbd2 {[%clk 0:02:12]}  Ng6 {[%clk 0:02:46]} 11. Bg3 {[%clk 0:02:06]}  Qc7 {[%clk 0:02:45]} 12. O-O {[%clk 0:01:54]}  Ngxe5 {[%clk 0:02:30]} 13. Nxe5 {[%clk 0:01:42]}  Bxe2 {[%clk 0:02:29]} 14. Rfe1 {[%clk 0:01:42]}  Nxe5 {[%clk 0:02:15]} 15. Rxe2 {[%clk 0:01:24]}  Bd6 {[%clk 0:02:11]} 16. Rae1 {[%clk 0:01:18]}  Nd3 {[%clk 0:02:01]} 17. Bxd6 {[%clk 0:01:17]}  Qxd6 {[%clk 0:02:02]} 18. Rd1 {[%clk 0:01:16]}  Nf4 {[%clk 0:01:53]} 19. Re3 {[%clk 0:01:15]}  Rab8 {[%clk 0:01:53]} 20. Qa4 {[%clk 0:00:55]}  Ng6 {[%clk 0:01:52]} 21. h4 {[%clk 0:00:50]}  b5 {[%clk 0:01:45]} 22. Qg4 {[%clk 0:00:49]}  Qf4 {[%clk 0:01:45]} 23. Qxf4 {[%clk 0:00:43]}  Nxf4 {[%clk 0:01:45]} 24. g3 {[%clk 0:00:38]}  Ng6 {[%clk 0:01:45]} 25. Nb3 {[%clk 0:00:37]}  Rfc8 {[%clk 0:01:39]} 26. f4 {[%clk 0:00:33]}  Ne7 {[%clk 0:01:39]} 27. g4 {[%clk 0:00:32]}  g6 {[%clk 0:01:39]} 28. Nd4 {[%clk 0:00:28]}  b4 {[%clk 0:01:34]} 29. f5 {[%clk 0:00:27]}  bxc3 {[%clk 0:01:27]} 30. bxc3 {[%clk 0:00:28]}  gxf5 {[%clk 0:01:13]} 31. gxf5 {[%clk 0:00:28]}  Nxf5 {[%clk 0:01:12]} 32. Nxf5 {[%clk 0:00:27]}  exf5 {[%clk 0:01:13]} 33. Rxd5 {[%clk 0:00:27]}  Rb2 {[%clk 0:01:13]} 34. Ra5 {[%clk 0:00:20]}  Rd8 {[%clk 0:01:12]} 35. Rxf5 {[%clk 0:00:15]}  Rd1+ {[%clk 0:01:09]} 36. Rf1 {[%clk 0:00:15]}  Rxf1+ {[%clk 0:01:09]} 37. Kxf1 {[%clk 0:00:15]}  Rxa2 {[%clk 0:01:10]} 38. Rg3+ {[%clk 0:00:14]}  Kf8 {[%clk 0:01:10]} 39. Re3 {[%clk 0:00:12]}  Kg7 {[%clk 0:01:08]} 40. Re4 {[%clk 0:00:11]}  f5 {[%clk 0:01:06]} 41. Re7+ {[%clk 0:00:11]}  Kg6 {[%clk 0:01:06]} 42. h5+ {[%clk 0:00:10]}  Kh6 {[%clk 0:01:05]} 43. Re6+ {[%clk 0:00:11]}  Kxh5 {[%clk 0:01:05]} 44. Rf6 {[%clk 0:00:10]}  Kg5 {[%clk 0:01:05]} 45. Rf7 {[%clk 0:00:10]}  h5 {[%clk 0:01:04]} 46. Rg7+ {[%clk 0:00:10]}  Kf4 {[%clk 0:01:04]} 47. Rd7 {[%clk 0:00:10]}  a5 {[%clk 0:01:02]} 48. Rd4+ {[%clk 0:00:11]}  Kg5 {[%clk 0:01:02]} 49. Rd7 {[%clk 0:00:10]}  h4 {[%clk 0:01:02]} 50. Rg7+ {[%clk 0:00:10]}  Kf4 {[%clk 0:01:02]} 51. Rd7 {[%clk 0:00:10]}  Kg4 {[%clk 0:01:02]} 52. Rd4+ {[%clk 0:00:11]}  f4 {[%clk 0:01:02]} 53. Rd7 {[%clk 0:00:10]}  Kg3 {[%clk 0:01:03]} 54. Rg7+ {[%clk 0:00:11]}  Kf3 {[%clk 0:01:03]} 55. Ke1 {[%clk 0:00:10]}  h3 {[%clk 0:01:02]} 56. Rh7 {[%clk 0:00:09]}  Kg2 {[%clk 0:00:59]} 57. Rg7+ {[%clk 0:00:09]}  Kf3 {[%clk 0:00:56]} 58. Rh7 {[%clk 0:00:09]}  h2 {[%clk 0:00:56]} 59. Rh3+ {[%clk 0:00:08]}  Kg4 {[%clk 0:00:56]} 60. Rh8 {[%clk 0:00:08]}  h1=Q+ {[%clk 0:00:56]} 61. Rxh1 {[%clk 0:00:06]}  Ra1+ {[%clk 0:00:57]} 0-1


[Site "https://www.chess.com"]

[Event "Titled Tuesday Blitz July 11 Late 2023"]
[White "D`Arruda, Ricardo D."]
[Black "Stachanczyk, Jacek"]
[WhiteFideId "100692"]
[BlackFideId "1116657"]
[WhiteElo "2510"]
[BlackElo "2380"]
[Result "1-0"]
[Round "10"]
[TimeControl "180+2"]
[Date "2023.07.11"]
[WhiteClock "0:01:14"]
[BlackClock "0:01:33"]
[Board "76"]

1. d4 {[%clk 0:01:35]}  Nf6 {[%clk 0:02:58]} 2. Nf3 {[%clk 0:01:34]}  d5 {[%clk 0:02:58]} 3. g3 {[%clk 0:01:35]}  c6 {[%clk 0:02:57]} 4. Bg2 {[%clk 0:01:36]}  Bf5 {[%clk 0:02:57]} 5. O-O {[%clk 0:01:37]}  h6 {[%clk 0:02:57]} 6. c4 {[%clk 0:01:38]}  e6 {[%clk 0:02:57]} 7. cxd5 {[%clk 0:01:39]}  cxd5 {[%clk 0:02:54]} 8. Nc3 {[%clk 0:01:39]}  Nc6 {[%clk 0:02:53]} 9. Bf4 {[%clk 0:01:39]}  Bd6 {[%clk 0:02:52]} 10. Bxd6 {[%clk 0:01:38]}  Qxd6 {[%clk 0:02:51]} 11. a3 {[%clk 0:01:39]}  O-O {[%clk 0:02:51]} 12. e3 {[%clk 0:01:39]}  Rac8 {[%clk 0:02:50]} 13. Rc1 {[%clk 0:01:39]}  Rc7 {[%clk 0:02:48]} 14. Nb5 {[%clk 0:01:36]}  Qd7 {[%clk 0:02:49]} 15. Nxc7 {[%clk 0:01:37]}  Qxc7 {[%clk 0:02:49]} 16. b4 {[%clk 0:01:35]}  Qb6 {[%clk 0:02:47]} 17. Ne5 {[%clk 0:01:35]}  Nxe5 {[%clk 0:02:46]} 18. dxe5 {[%clk 0:01:36]}  Nd7 {[%clk 0:02:45]} 19. Qd4 {[%clk 0:01:35]}  Qa6 {[%clk 0:02:29]} 20. Rc3 {[%clk 0:01:31]}  Nb6 {[%clk 0:02:23]} 21. Rfc1 {[%clk 0:01:30]}  Nc4 {[%clk 0:02:23]} 22. e4 {[%clk 0:01:30]}  Bg6 {[%clk 0:02:09]} 23. exd5 {[%clk 0:01:30]}  exd5 {[%clk 0:02:09]} 24. Bxd5 {[%clk 0:01:27]}  Nb6 {[%clk 0:02:05]} 25. Bf3 {[%clk 0:01:17]}  Qa4 {[%clk 0:01:33]} 26. Bxb7 {[%clk 0:01:14]} 1-0


[Site "https://www.chess.com"]

[Event "Titled Tuesday Blitz July 11 Late 2023"]
[White "Dragomirescu, Robin-Alexandru"]
[Black "Gerbelli Neto, Eduardo"]
[WhiteFideId "1213849"]
[BlackFideId "2103281"]
[WhiteElo "2492"]
[BlackElo "2346"]
[Result "0-1"]
[Round "10"]
[TimeControl "180+2"]
[Date "2023.07.11"]
[WhiteClock "0:02:22"]
[BlackClock "0:02:26"]
[Board "77"]

1. b3 {[%clk 0:03:00]}  Nf6 {[%clk 0:02:59]} 2. Bb2 {[%clk 0:03:01]}  e6 {[%clk 0:02:59]} 3. c4 {[%clk 0:03:02]}  c5 {[%clk 0:02:59]} 4. Nf3 {[%clk 0:02:56]}  Nc6 {[%clk 0:02:59]} 5. e3 {[%clk 0:02:56]}  Be7 {[%clk 0:02:59]} 6. d4 {[%clk 0:02:51]}  d5 {[%clk 0:02:57]} 7. cxd5 {[%clk 0:02:49]}  Nxd5 {[%clk 0:02:57]} 8. e4 {[%clk 0:02:42]}  Nf6 {[%clk 0:02:54]} 9. e5 {[%clk 0:02:40]}  Nd5 {[%clk 0:02:53]} 10. Nbd2 {[%clk 0:02:29]}  cxd4 {[%clk 0:02:50]} 11. Nxd4 {[%clk 0:02:29]}  Nxe5 {[%clk 0:02:26]} 12. Bb5+ {[%clk 0:02:22]} 0-1


[Site "https://www.chess.com"]

[Event "Titled Tuesday Blitz July 11 Late 2023"]
[White "Bogaudinov, Rushan"]
[Black "Peycheva, Gergana"]
[WhiteFideId "4129288"]
[BlackFideId "2916711"]
[WhiteElo "2379"]
[BlackElo "2490"]
[Result "1-0"]
[Round "10"]
[TimeControl "180+2"]
[Date "2023.07.11"]
[WhiteClock "0:00:05"]
[BlackClock "0:00:00"]
[Board "78"]

1. e4 {[%clk 0:02:59]}  c5 {[%clk 0:02:59]} 2. Nf3 {[%clk 0:02:59]}  Nc6 {[%clk 0:02:58]} 3. Bb5 {[%clk 0:02:57]}  g6 {[%clk 0:02:56]} 4. O-O {[%clk 0:02:56]}  Bg7 {[%clk 0:02:56]} 5. c3 {[%clk 0:02:55]}  Nf6 {[%clk 0:02:56]} 6. Re1 {[%clk 0:02:55]}  O-O {[%clk 0:02:55]} 7. d4 {[%clk 0:02:54]}  d5 {[%clk 0:02:55]} 8. e5 {[%clk 0:02:50]}  Ne4 {[%clk 0:02:53]} 9. Bd3 {[%clk 0:02:39]}  cxd4 {[%clk 0:02:29]} 10. cxd4 {[%clk 0:02:39]}  Qb6 {[%clk 0:02:29]} 11. Nc3 {[%clk 0:02:33]}  Nxc3 {[%clk 0:02:10]} 12. bxc3 {[%clk 0:02:32]}  Na5 {[%clk 0:02:09]} 13. Ba3 {[%clk 0:02:29]}  Qc7 {[%clk 0:02:06]} 14. Qc2 {[%clk 0:02:19]}  Bg4 {[%clk 0:02:03]} 15. Nd2 {[%clk 0:02:18]}  Rac8 {[%clk 0:01:59]} 16. Rac1 {[%clk 0:02:14]}  b6 {[%clk 0:01:54]} 17. h3 {[%clk 0:02:14]}  Be6 {[%clk 0:01:52]} 18. f4 {[%clk 0:02:14]}  Bh6 {[%clk 0:01:51]} 19. Rf1 {[%clk 0:02:14]}  Qd7 {[%clk 0:01:42]} 20. Kh2 {[%clk 0:02:12]}  f5 {[%clk 0:01:36]} 21. g3 {[%clk 0:02:01]}  Rc7 {[%clk 0:01:31]} 22. Bb2 {[%clk 0:01:56]}  Rfc8 {[%clk 0:01:22]} 23. a4 {[%clk 0:01:42]}  Bf8 {[%clk 0:01:12]} 24. Ba6 {[%clk 0:01:40]}  Rb8 {[%clk 0:01:11]} 25. Bb5 {[%clk 0:01:34]}  Qc8 {[%clk 0:01:11]} 26. Qd3 {[%clk 0:01:24]}  Bd7 {[%clk 0:01:07]} 27. c4 {[%clk 0:01:09]}  dxc4 {[%clk 0:00:59]} 28. Bxc4+ {[%clk 0:01:08]}  Nxc4 {[%clk 0:00:57]} 29. Rxc4 {[%clk 0:01:04]}  Rxc4 {[%clk 0:00:54]} 30. Nxc4 {[%clk 0:01:04]}  Bxa4 {[%clk 0:00:54]} 31. Rc1 {[%clk 0:01:03]}  Bb5 {[%clk 0:00:53]} 32. Qb3 {[%clk 0:01:01]}  Bxc4 {[%clk 0:00:53]} 33. Rxc4 {[%clk 0:00:57]}  Qe6 {[%clk 0:00:52]} 34. Qd3 {[%clk 0:00:55]}  b5 {[%clk 0:00:49]} 35. Rc7 {[%clk 0:00:50]}  Qa2 {[%clk 0:00:47]} 36. Rc2 {[%clk 0:00:48]}  b4 {[%clk 0:00:45]} 37. d5 {[%clk 0:00:45]}  b3 {[%clk 0:00:42]} 38. Rd2 {[%clk 0:00:42]}  Rd8 {[%clk 0:00:35]} 39. g4 {[%clk 0:00:41]}  fxg4 {[%clk 0:00:32]} 40. hxg4 {[%clk 0:00:42]}  Qa4 {[%clk 0:00:32]} 41. Kg3 {[%clk 0:00:40]}  Qb4 {[%clk 0:00:25]} 42. f5 {[%clk 0:00:35]}  g5 {[%clk 0:00:20]} 43. Qe3 {[%clk 0:00:26]}  h6 {[%clk 0:00:16]} 44. Qd4 {[%clk 0:00:11]}  Qxd4 {[%clk 0:00:13]} 45. Rxd4 {[%clk 0:00:12]}  a5 {[%clk 0:00:08]} 46. Kf3 {[%clk 0:00:12]}  Rc8 {[%clk 0:00:07]} 47. Rd2 {[%clk 0:00:08]}  Rc4 {[%clk 0:00:04]} 48. d6 {[%clk 0:00:06]}  exd6 {[%clk 0:00:04]} 49. exd6 {[%clk 0:00:07]}  Rc8 {[%clk 0:00:04]} 50. d7 {[%clk 0:00:07]}  Rd8 {[%clk 0:00:04]} 51. Bf6 {[%clk 0:00:06]}  b2 {[%clk 0:00:01]} 52. Bxb2 {[%clk 0:00:05]}  Kf7 {[%clk 0:00:01]} 53. Bc3 {[%clk 0:00:04]}  Bb4 {[%clk 0:00:01]} 54. Bxb4 {[%clk 0:00:04]}  axb4 {[%clk 0:00:02]} 55. Ke4 {[%clk 0:00:04]}  Ke7 {[%clk 0:00:02]} 56. Rb2 {[%clk 0:00:04]}  Rxd7 {[%clk 0:00:02]} 57. Rxb4 {[%clk 0:00:05]}  Rd1 {[%clk 0:00:02]} 58. Rb7+ {[%clk 0:00:04]}  Kf8 {[%clk 0:00:02]} 59. f6 {[%clk 0:00:05]}  Rg1 {[%clk 0:00:02]} 60. Kf5 {[%clk 0:00:05]}  Rf1+ {[%clk 0:00:02]} 61. Kg6 {[%clk 0:00:05]}  Ke8 {[%clk 0:00:01]} 62. Rb8+ {[%clk 0:00:05]}  Kd7 {[%clk 0:00:01]} 63. f7 {[%clk 0:00:05]}  h5 {[%clk 0:00:00]} 64. f8=Q {[%clk 0:00:05]} 1-0


[Site "https://www.chess.com"]

[Event "Titled Tuesday Blitz July 11 Late 2023"]
[White "Romero Ruscalleda, Josep"]
[Black "Marchesich, Giovanni"]
[WhiteFideId "2231859"]
[BlackFideId "2824790"]
[WhiteElo "2436"]
[BlackElo "2290"]
[Result "0-1"]
[Round "10"]
[TimeControl "180+2"]
[Date "2023.07.11"]
[WhiteClock "0:00:00"]
[BlackClock "0:00:57"]
[Board "83"]

1. e4 {[%clk 0:03:00]}  g6 {[%clk 0:03:00]} 2. d4 {[%clk 0:03:00]}  Bg7 {[%clk 0:03:00]} 3. Nc3 {[%clk 0:03:00]}  Nh6 {[%clk 0:03:00]} 4. g3 {[%clk 0:03:00]}  f6 {[%clk 0:03:00]} 5. Bg2 {[%clk 0:02:59]}  Nf7 {[%clk 0:03:01]} 6. Nge2 {[%clk 0:02:58]}  O-O {[%clk 0:03:01]} 7. O-O {[%clk 0:02:58]}  e5 {[%clk 0:03:00]} 8. Be3 {[%clk 0:02:56]}  Nc6 {[%clk 0:03:00]} 9. d5 {[%clk 0:02:51]}  Ne7 {[%clk 0:03:00]} 10. Qd2 {[%clk 0:02:49]}  d6 {[%clk 0:02:59]} 11. f4 {[%clk 0:02:47]}  f5 {[%clk 0:02:59]} 12. fxe5 {[%clk 0:02:37]}  Nxe5 {[%clk 0:02:59]} 13. Bd4 {[%clk 0:02:31]}  Nc4 {[%clk 0:02:43]} 14. Qc1 {[%clk 0:02:25]}  Ne5 {[%clk 0:02:38]} 15. Qe1 {[%clk 0:02:02]}  fxe4 {[%clk 0:02:38]} 16. Bxe4 {[%clk 0:01:58]}  Nf5 {[%clk 0:02:38]} 17. Bxe5 {[%clk 0:01:47]}  Bxe5 {[%clk 0:02:36]} 18. Nf4 {[%clk 0:01:41]}  Qg5 {[%clk 0:02:19]} 19. Kh1 {[%clk 0:01:07]}  Qg4 {[%clk 0:01:56]} 20. Bf3 {[%clk 0:01:00]}  Qg5 {[%clk 0:01:41]} 21. Nd3 {[%clk 0:00:52]}  Bxg3 {[%clk 0:01:35]} 22. Ne4 {[%clk 0:00:40]}  Bxe1 {[%clk 0:01:26]} 23. Nxg5 {[%clk 0:00:39]}  Bh4 {[%clk 0:01:20]} 24. Ne6 {[%clk 0:00:39]}  Bxe6 {[%clk 0:01:19]} 25. dxe6 {[%clk 0:00:39]}  c6 {[%clk 0:01:18]} 26. Be4 {[%clk 0:00:28]}  Rae8 {[%clk 0:01:13]} 27. Bxf5 {[%clk 0:00:28]}  Rxf5 {[%clk 0:01:13]} 28. Rxf5 {[%clk 0:00:28]}  gxf5 {[%clk 0:01:14]} 29. Nf4 {[%clk 0:00:27]}  Kf8 {[%clk 0:01:11]} 30. Rg1 {[%clk 0:00:21]}  Bf6 {[%clk 0:01:10]} 31. Rf1 {[%clk 0:00:08]}  Ke7 {[%clk 0:01:06]} 32. Nh5 {[%clk 0:00:05]}  Bxb2 {[%clk 0:01:04]} 33. Ng7 {[%clk 0:00:03]}  Bxg7 {[%clk 0:01:00]} 34. Rxf5 {[%clk 0:00:02]}  Kxe6 {[%clk 0:00:59]} 35. Rg5 {[%clk 0:00:02]}  Be5 {[%clk 0:00:58]} 36. h4 {[%clk 0:00:02]}  Rf8 {[%clk 0:00:59]} 37. Kg2 {[%clk 0:00:01]}  Kd5 {[%clk 0:00:57]} 38. h5 {[%clk 0:00:01]}  Rf7 {[%clk 0:00:57]} 39. h6 {[%clk 0:00:01]}  Kc4 {[%clk 0:00:57]} 40. Kh3 {[%clk 0:00:01]}  Kc3 {[%clk 0:00:57]} 41. Kg4 {[%clk 0:00:01]}  Kxc2 {[%clk 0:00:57]} 42. Kh5 {[%clk 0:00:00]}  b5 {[%clk 0:00:57]} 0-1


[Site "https://www.chess.com"]